[Event "*** Titled Tuesday 3|2 Blitz"]
[Site "Chess.com"]
[Date "2015.06.02"]
[Round "7"]
[White "Krutoy123"]
[Black "Cruel_Yaro"]
[Result "1/2-1/2"]
[WhiteElo "2140"]
[BlackElo "2547"]
[TimeControl "180+2"]
[EndTime "12:32:28 PDT"]
[Termination "Game drawn by agreement"]

1. b3 {[%clk 0:03:01.7]} 1... e6 {[%clk 0:02:53.5]} 2. Bb2 {[%clk 0:03:03.6]}
2... a5 {[%clk 0:02:53.4]} 3. e3 {[%clk 0:03:04.1]} 3... f6 {[%clk 0:02:52.9]}
4. f4 {[%clk 0:03:02.6]} 4... Nh6 {[%clk 0:02:53.8]} 5. Nf3 {[%clk 0:03:03.7]}
5... Nf7 {[%clk 0:02:54.6]} 6. Be2 {[%clk 0:03:04.1]} 6... Be7 {[%clk
0:02:54.2]} 7. O-O {[%clk 0:03:05.3]} 7... O-O {[%clk 0:02:55.5]} 8. c4 {[%clk
0:02:59.2]} 8... d5 {[%clk 0:02:53.8]} 9. Nc3 {[%clk 0:02:59.7]} 9... c6 {[%clk
0:02:47.9]} 10. d4 {[%clk 0:02:57.7]} 10... f5 {[%clk 0:02:47.4]} 11. Rc1 {[%clk
0:02:52.2]} 11... Nd7 {[%clk 0:02:44.6]} 12. Qc2 {[%clk 0:02:47.7]} 12... Nf6
{[%clk 0:02:39.7]} 13. Ne5 {[%clk 0:02:48.5]} 13... Bd7 {[%clk 0:02:28.4]} 14.
Bf3 {[%clk 0:02:45.3]} 14... b5 {[%clk 0:02:19.6]} 15. cxb5 {[%clk 0:02:34.3]}
15... cxb5 {[%clk 0:02:20]} 16. Qe2 {[%clk 0:02:35.5]} 16... Rb8 {[%clk
0:02:15.6]} 17. Rfd1 {[%clk 0:02:34]} 17... Qb6 {[%clk 0:01:59.5]} 18. h3 {[%clk
0:02:16.3]} 18... Rb7 {[%clk 0:01:35]} 19. g4 {[%clk 0:02:07.5]} 19... Nxe5
{[%clk 0:01:30]} 20. dxe5 {[%clk 0:02:06.3]} 20... Ne4 {[%clk 0:01:30]} 21. Nxe4
{[%clk 0:02:00.7]} 21... fxe4 {[%clk 0:01:24.7]} 22. Bg2 {[%clk 0:01:50.5]}
22... Bc5 {[%clk 0:01:20.9]} 23. Re1 {[%clk 0:01:28.9]} 23... Rc7 {[%clk
0:00:57.3]} 24. Kh1 {[%clk 0:01:28]} 24... b4 {[%clk 0:00:51.1]} 25. Qf2 {[%clk
0:01:18.5]} 25... Rfc8 {[%clk 0:00:39.2]} 26. Qd2 {[%clk 0:01:03.8]} 26... Bb5
{[%clk 0:00:36.3]} 27. f5 {[%clk 0:00:51.6]} 27... Bd3 {[%clk 0:00:37.1]} 28.
Ba1 {[%clk 0:00:24.5]} 28... exf5 {[%clk 0:00:28.7]} 29. gxf5 {[%clk 0:00:22.7]}
29... Qh6 {[%clk 0:00:29.7]} 30. Qf2 {[%clk 0:00:15.4]} 30... Bxe3 {[%clk
0:00:20.4]} 31. Rxc7 {[%clk 0:00:15.7]} 31... Rxc7 {[%clk 0:00:21.8]} 32. Rxe3
{[%clk 0:00:14.5]} 32... Rc1+ {[%clk 0:00:20.9]} 33. Kh2 {[%clk 0:00:15.9]}
33... Rxa1 {[%clk 0:00:20.8]} 34. Rg3 {[%clk 0:00:05.9]} 34... Rc1 {[%clk
0:00:16.2]} 35. Qa7 {[%clk 0:00:05.7]} 35... Rc8 {[%clk 0:00:14.9]} 36. f6
{[%clk 0:00:06.7]} 36... g6 {[%clk 0:00:14.1]} 37. Qe7 {[%clk 0:00:05.7]} 37...
Qf8 {[%clk 0:00:13.9]} 38. Qe6+ {[%clk 0:00:06.8]} 38... Kh8 {[%clk 0:00:14.9]}
39. Qxd5 {[%clk 0:00:07.4]} 39... Rd8 {[%clk 0:00:13.3]} 40. Qb7 {[%clk
0:00:08.4]} 40... Re8 {[%clk 0:00:09.9]} 41. Bxe4 {[%clk 0:00:03.9]} 41... Bxe4
{[%clk 0:00:10.7]} 42. Qxe4 {[%clk 0:00:04.8]} 42... Qxf6 {[%clk 0:00:12.4]} 43.
exf6 {[%clk 0:00:03.1]} 43... Rxe4 {[%clk 0:00:13]} 44. Rg2 {[%clk 0:00:04.3]}
44... Kg8 {[%clk 0:00:14.3]} 45. Rc2 {[%clk 0:00:04.3]} 45... Kf7 {[%clk
0:00:15.4]} 46. Kg3 {[%clk 0:00:05.4]} 46... Kxf6 {[%clk 0:00:16.6]} 47. Rc5
{[%clk 0:00:06.9]} 47... Re5 {[%clk 0:00:17.5]} 48. Rc2 {[%clk 0:00:06.8]} 48...
g5 {[%clk 0:00:17.8]} 49. Kg4 {[%clk 0:00:08]} 49... Re4+ {[%clk 0:00:18.2]} 50.
Kf3 {[%clk 0:00:08.6]} 50... Kf5 {[%clk 0:00:15]} 51. Rc7 {[%clk 0:00:07.5]}
51... Rf4+ {[%clk 0:00:14.9]} 52. Kg3 {[%clk 0:00:08.7]} 52... Rd4 {[%clk
0:00:14.7]} 53. Rc5+ {[%clk 0:00:08.5]} 53... Kg6 {[%clk 0:00:13.4]} 54. Rxa5
{[%clk 0:00:09.4]} 54... h5 {[%clk 0:00:14.5]} 55. Ra6+ {[%clk 0:00:10.1]} 55...
Kf5 {[%clk 0:00:15.3]} 56. Ra5+ {[%clk 0:00:11.2]} 56... Kg6 {[%clk 0:00:16.6]}
57. Ra6+ {[%clk 0:00:11.9]} 57... Kf5 {[%clk 0:00:17.9]} 58. Ra5+ {[%clk
0:00:12.1]} 58... Kf6 {[%clk 0:00:18.9]} 59. Kf3 {[%clk 0:00:07.1]} 59... Rd3+
{[%clk 0:00:18.3]} 60. Kg2 {[%clk 0:00:06.1]} 60... h4 {[%clk 0:00:15.4]} 61.
Ra4 {[%clk 0:00:06]} 61... Rd4 {[%clk 0:00:10.1]} 62. a3 {[%clk 0:00:05.9]}
62... Rd2+ {[%clk 0:00:09.3]} 63. Kg1 {[%clk 0:00:06.9]} 63... Rd3 {[%clk
0:00:07.4]} 64. Kg2 {[%clk 0:00:07.9]} 64... Rg3+ {[%clk 0:00:07.7]} 65. Kh2
{[%clk 0:00:08.5]} 65... Rxb3 {[%clk 0:00:08.1]} 66. axb4 {[%clk 0:00:08.5]}
66... Rb2+ {[%clk 0:00:08.9]} 67. Kg1 {[%clk 0:00:09.4]} 67... Kf5 {[%clk
0:00:10.4]} 68. b5 {[%clk 0:00:07.8]} 68... Rxb5 {[%clk 0:00:10.8]} 69. Kg2
{[%clk 0:00:07.9]} 69... Rb2+ {[%clk 0:00:11.5]} 70. Kg1 {[%clk 0:00:07.6]}
70... Re2 {[%clk 0:00:12.6]} 71. Kf1 {[%clk 0:00:08.6]} 71... Re4 {[%clk
0:00:13.4]} 72. Ra3 {[%clk 0:00:09.9]} 72... Kf4 {[%clk 0:00:14.6]} 73. Kf2
{[%clk 0:00:11.1]} 73... Rb4 {[%clk 0:00:15.2]} 74. Rf3+ {[%clk 0:00:12]} 74...
Ke4 {[%clk 0:00:15.7]} 75. Re3+ {[%clk 0:00:13.1]} 75... Kf5 {[%clk 0:00:13]}
76. Re2 {[%clk 0:00:12.2]} 76... Kf4 {[%clk 0:00:13.8]} 77. Kg2 {[%clk 0:00:13]}
77... Rb3 {[%clk 0:00:14.5]} 78. Rf2+ {[%clk 0:00:14.1]} 78... Ke4 {[%clk
0:00:15.9]} 79. Re2+ {[%clk 0:00:15.2]} 79... Re3 {[%clk 0:00:16.9]} 80. Ra2
{[%clk 0:00:16.2]} 80... Rd3 {[%clk 0:00:17]} 81. Re2+ {[%clk 0:00:15.7]} 81...
Kf4 {[%clk 0:00:16.7]} 82. Rf2+ {[%clk 0:00:16.7]} 82... Ke3 {[%clk 0:00:17.8]}
83. Rf3+ {[%clk 0:00:17.6]} 83... Ke4 {[%clk 0:00:18.2]} 84. Rxd3 {[%clk
0:00:16.5]} 84... Kxd3 {[%clk 0:00:19.3]} 85. Kf3 {[%clk 0:00:18.1]} 85... Kd4
{[%clk 0:00:20.3]} 86. Kg4 {[%clk 0:00:18.7]} 86... Ke5 {[%clk 0:00:21.6]} 87.
Kxg5 {[%clk 0:00:19.8]} 87... Ke6 {[%clk 0:00:23.2]} 88. Kxh4 {[%clk 0:00:21]}
88... Kf7 {[%clk 0:00:24.5]} 89. Kg3 {[%clk 0:00:22.3]} 89... Kg8 {[%clk
0:00:25.8]} 90. Kg2 {[%clk 0:00:23.7]} 90... Kh8 {[%clk 0:00:27.1]} 91. Kf2
{[%clk 0:00:25.1]} 91... Kg8 {[%clk 0:00:26.8]} 1/2-1/2

[Event "*** Titled Tuesday 3|2 Blitz"]
[Site "Chess.com"]
[Date "2015.06.02"]
[Round "7"]
[White "GregShahade"]
[Black "Philofive"]
[Result "0-1"]
[WhiteElo "2320"]
[BlackElo "2221"]
[TimeControl "180+2"]
[EndTime "12:33:19 PDT"]
[Termination "Philofive won on time"]

1. c4 {[%clk 0:03:01.9]} 1... g6 {[%clk 0:02:55.2]} 2. Nc3 {[%clk 0:03:02.2]}
2... Bg7 {[%clk 0:02:55.5]} 3. g3 {[%clk 0:03:03.2]} 3... d6 {[%clk 0:02:55.6]}
4. Bg2 {[%clk 0:03:03.6]} 4... Nf6 {[%clk 0:02:56.5]} 5. Nf3 {[%clk 0:03:04.6]}
5... O-O {[%clk 0:02:57.6]} 6. O-O {[%clk 0:03:05.7]} 6... Nc6 {[%clk
0:02:58.7]} 7. d3 {[%clk 0:03:05]} 7... h6 {[%clk 0:02:56.9]} 8. Rb1 {[%clk
0:03:06]} 8... e5 {[%clk 0:02:58]} 9. b4 {[%clk 0:03:06.6]} 9... Nd4 {[%clk
0:02:59.2]} 10. Nd2 {[%clk 0:03:06]} 10... h5 {[%clk 0:02:41.4]} 11. e3 {[%clk
0:02:54.8]} 11... Ne6 {[%clk 0:02:41.6]} 12. e4 {[%clk 0:02:34.8]} 12... h4
{[%clk 0:02:38.2]} 13. Nb3 {[%clk 0:02:32.6]} 13... Nh5 {[%clk 0:02:30]} 14. Be3
{[%clk 0:02:27]} 14... Kh7 {[%clk 0:02:17.6]} 15. a4 {[%clk 0:02:19]} 15... Bd7
{[%clk 0:02:15.7]} 16. b5 {[%clk 0:02:11.3]} 16... Rh8 {[%clk 0:01:52.5]} 17.
Qf3 {[%clk 0:02:05.8]} 17... Kg8 {[%clk 0:01:47.3]} 18. Nd5 {[%clk 0:02:00.9]}
18... c6 {[%clk 0:01:28.7]} 19. bxc6 {[%clk 0:01:58.8]} 19... bxc6 {[%clk
0:01:29.9]} 20. Nc3 {[%clk 0:01:55.5]} 20... Ng5 {[%clk 0:01:25.2]} 21. Bxg5
{[%clk 0:01:52]} 21... Qxg5 {[%clk 0:01:25.5]} 22. Rfe1 {[%clk 0:01:28.1]} 22...
Bh6 {[%clk 0:01:25]} 23. Qe2 {[%clk 0:01:15.9]} 23... Kg7 {[%clk 0:01:18.2]} 24.
c5 {[%clk 0:01:15.8]} 24... Qe7 {[%clk 0:01:09.8]} 25. d4 {[%clk 0:01:13.4]}
25... Rab8 {[%clk 0:01:02.7]} 26. cxd6 {[%clk 0:00:59.4]} 26... Qxd6 {[%clk
0:01:03.1]} 27. dxe5 {[%clk 0:00:58.9]} 27... Qxe5 {[%clk 0:01:04.2]} 28. Qc2
{[%clk 0:00:55.1]} 28... hxg3 {[%clk 0:01:02.7]} 29. hxg3 {[%clk 0:00:55.4]}
29... Nxg3 {[%clk 0:00:41.6]} 30. Qd3 {[%clk 0:00:23.7]} 30... Be6 {[%clk
0:00:34.4]} 31. Nd4 {[%clk 0:00:20.7]} 31... Rxb1 {[%clk 0:00:29.5]} 32. Rxb1
{[%clk 0:00:22.2]} 32... Nh5 {[%clk 0:00:27.6]} 33. Nxc6 {[%clk 0:00:20.8]}
33... Qc5 {[%clk 0:00:18.6]} 34. Qd4+ {[%clk 0:00:21.3]} 34... Qxd4 {[%clk
0:00:19.6]} 35. Nxd4 {[%clk 0:00:23.2]} 35... Nf4 {[%clk 0:00:21.1]} 36. Bf1
{[%clk 0:00:21.4]} 36... Rc8 {[%clk 0:00:19.6]} 37. Nce2 {[%clk 0:00:21.5]}
37... Nxe2+ {[%clk 0:00:20.1]} 38. Bxe2 {[%clk 0:00:23.4]} 38... Kf6 {[%clk
0:00:18.7]} 39. Rb7 {[%clk 0:00:23.5]} 39... a5 {[%clk 0:00:18.4]} 40. Nxe6
{[%clk 0:00:24.5]} 40... fxe6 {[%clk 0:00:16.7]} 41. Rb5 {[%clk 0:00:21.6]}
41... Rc2 {[%clk 0:00:16.1]} 42. Kf1 {[%clk 0:00:22.3]} 42... Bd2 {[%clk
0:00:16.2]} 43. e5+ {[%clk 0:00:21.8]} 43... Kg5 {[%clk 0:00:15.3]} 44. Rb6
{[%clk 0:00:22.3]} 44... Ra2 {[%clk 0:00:12.5]} 45. Rxe6 {[%clk 0:00:22.7]}
45... Rxa4 {[%clk 0:00:13.1]} 46. Bd3 {[%clk 0:00:24.3]} 46... Kf4 {[%clk
0:00:11.1]} 47. Re8 {[%clk 0:00:21]} 47... Bb4 {[%clk 0:00:10.2]} 48. e6 {[%clk
0:00:20.6]} 48... Ra3 {[%clk 0:00:10.9]} 49. Bxg6 {[%clk 0:00:20.4]} 49... Rh3
{[%clk 0:00:11.8]} 50. e7 {[%clk 0:00:17.8]} 50... Ke5 {[%clk 0:00:13.1]} 51.
Ra8 {[%clk 0:00:13.7]} 51... Bxe7 {[%clk 0:00:12.9]} 52. Rxa5+ {[%clk
0:00:15.2]} 52... Kf6 {[%clk 0:00:14.1]} 53. Be4 {[%clk 0:00:15.9]} 53... Rh4
{[%clk 0:00:14.2]} 54. Bf3 {[%clk 0:00:14.2]} 54... Rf4 {[%clk 0:00:14.2]} 55.
Kg2 {[%clk 0:00:15]} 55... Rf5 {[%clk 0:00:14.6]} 56. Ra6+ {[%clk 0:00:15.8]}
56... Kg7 {[%clk 0:00:15.3]} 57. Be4 {[%clk 0:00:16.8]} 57... Rf7 {[%clk
0:00:13.7]} 58. Rc6 {[%clk 0:00:16.6]} 58... Bf6 {[%clk 0:00:14.8]} 59. f3
{[%clk 0:00:16.4]} 59... Be5 {[%clk 0:00:15.9]} 60. Kh3 {[%clk 0:00:17.2]} 60...
Rf6 {[%clk 0:00:16.8]} 61. Rc5 {[%clk 0:00:16.7]} 61... Bd6 {[%clk 0:00:15.7]}
62. Rb5 {[%clk 0:00:16.7]} 62... Rf4 {[%clk 0:00:13.1]} 63. Rb6 {[%clk
0:00:14.5]} 63... Rf6 {[%clk 0:00:12.7]} 64. Rb7+ {[%clk 0:00:15.7]} 64... Rf7
{[%clk 0:00:13.7]} 65. Rb6 {[%clk 0:00:12.6]} 65... Rf6 {[%clk 0:00:15]} 66. Kg4
{[%clk 0:00:11.4]} 66... Be5 {[%clk 0:00:14.6]} 67. Rb7+ {[%clk 0:00:11.9]}
67... Rf7 {[%clk 0:00:15.9]} 68. Rb5 {[%clk 0:00:12.7]} 68... Bd6 {[%clk
0:00:14.5]} 69. Kh5 {[%clk 0:00:12.8]} 69... Bf4 {[%clk 0:00:13.9]} 70. Rb6
{[%clk 0:00:12.3]} 70... Rf6 {[%clk 0:00:13.8]} 71. Rb7+ {[%clk 0:00:12.7]}
71... Rf7 {[%clk 0:00:15.1]} 72. Rb1 {[%clk 0:00:14.1]} 72... Be5 {[%clk
0:00:15.6]} 73. Rg1+ {[%clk 0:00:13.3]} 73... Kf6 {[%clk 0:00:16.9]} 74. Rg6+
{[%clk 0:00:14.5]} 74... Ke7 {[%clk 0:00:18]} 75. Ra6 {[%clk 0:00:16.1]} 75...
Bd6 {[%clk 0:00:18.9]} 76. Kg5 {[%clk 0:00:13]} 76... Rg7+ {[%clk 0:00:17.6]}
77. Bg6 {[%clk 0:00:13.2]} 77... Be5 {[%clk 0:00:11.5]} 78. Ra7+ {[%clk
0:00:12.5]} 78... Kf8 {[%clk 0:00:09.3]} 79. Ra8+ {[%clk 0:00:13.2]} 79... Ke7
{[%clk 0:00:10.7]} 80. f4 {[%clk 0:00:12.7]} 80... Bxf4+ {[%clk 0:00:11.5]} 81.
Kf5 {[%clk 0:00:11.9]} 81... Bc7 {[%clk 0:00:11.4]} 82. Ra7 {[%clk 0:00:10.7]}
82... Kd8 {[%clk 0:00:11.7]} 83. Ra8+ {[%clk 0:00:05.1]} 83... Kd7 {[%clk
0:00:12.7]} 84. Be8+ {[%clk 0:00:06]} 84... Kd6 {[%clk 0:00:13.8]} 85. Kf6
{[%clk 0:00:06.2]} 85... Rg1 {[%clk 0:00:14.2]} 86. Ra6+ {[%clk 0:00:07.2]}
86... Kd5 {[%clk 0:00:13.5]} 87. Bf7+ {[%clk 0:00:08.1]} 87... Kc5 {[%clk
0:00:13.8]} 88. Be8 {[%clk 0:00:07.7]} 88... Bb6 {[%clk 0:00:14.6]} 89. Ra2
{[%clk 0:00:08]} 89... Rf1+ {[%clk 0:00:15.6]} 90. Kg5 {[%clk 0:00:06.8]} 90...
Rg1+ {[%clk 0:00:16.6]} 91. Kf5 {[%clk 0:00:07.8]} 91... Rf1+ {[%clk 0:00:18.1]}
92. Ke4 {[%clk 0:00:08.2]} 92... Re1+ {[%clk 0:00:19.6]} 93. Kf5 {[%clk
0:00:07.4]} 93... Rxe8 {[%clk 0:00:21]} 94. Rc2+ {[%clk 0:00:08.4]} 94... Kd5
{[%clk 0:00:21.6]} 0-1

[Event "*** Titled Tuesday 3|2 Blitz"]
[Site "Chess.com"]
[Date "2015.06.02"]
[Round "8"]
[White "lorcho"]
[Black "9ShMat2"]
[Result "1/2-1/2"]
[WhiteElo "2499"]
[BlackElo "2516"]
[TimeControl "180+2"]
[EndTime "12:36:14 PDT"]
[Termination "Game drawn by agreement"]

1. e4 {[%clk 0:03:00.8]} 1... c5 {[%clk 0:02:58.8]} 2. Nc3 {[%clk 0:03:01.5]}
2... Nc6 {[%clk 0:02:59.5]} 3. g3 {[%clk 0:03:02.8]} 3... g6 {[%clk 0:03:00]} 4.
Bg2 {[%clk 0:03:04.1]} 4... Bg7 {[%clk 0:03:00.8]} 5. d3 {[%clk 0:03:05.7]} 5...
d6 {[%clk 0:03:01.2]} 6. f4 {[%clk 0:03:06]} 6... e6 {[%clk 0:03:01.1]} 7. Nf3
{[%clk 0:03:06.6]} 7... Nge7 {[%clk 0:03:01.1]} 8. O-O {[%clk 0:03:07.1]} 8...
O-O {[%clk 0:02:56.3]} 9. Be3 {[%clk 0:03:07.4]} 9... Nd4 {[%clk 0:02:54.8]} 10.
e5 {[%clk 0:03:05.9]} 10... Nef5 {[%clk 0:02:41.5]} 11. Bf2 {[%clk 0:03:06.7]}
11... dxe5 {[%clk 0:02:37.8]} 12. Nxe5 {[%clk 0:03:03.4]} 12... Rb8 {[%clk
0:02:34]} 13. Ne4 {[%clk 0:03:04.3]} 13... f6 {[%clk 0:02:31.2]} 14. Nc4 {[%clk
0:03:03.4]} 14... b6 {[%clk 0:02:32.1]} 15. c3 {[%clk 0:03:02.7]} 15... Nb5
{[%clk 0:02:32.8]} 16. Qe2 {[%clk 0:03:02.7]} 16... Nc7 {[%clk 0:02:28.2]} 17.
g4 {[%clk 0:03:02.4]} 17... Nh6 {[%clk 0:02:23]} 18. g5 {[%clk 0:03:01.6]} 18...
Nf5 {[%clk 0:02:16]} 19. Nxf6+ {[%clk 0:03:02.2]} 19... Bxf6 {[%clk 0:02:16.1]}
20. gxf6 {[%clk 0:03:04.1]} 20... Qxf6 {[%clk 0:02:16.6]} 21. Bg3 {[%clk
0:03:01.3]} 21... Bb7 {[%clk 0:02:12.8]} 1/2-1/2

[Event "*** Titled Tuesday 3|2 Blitz"]
[Site "Chess.com"]
[Date "2015.06.02"]
[Round "8"]
[White "FearNoEvil12"]
[Black "adypady02"]
[Result "0-1"]
[WhiteElo "1956"]
[BlackElo "2259"]
[TimeControl "180+2"]
[EndTime "12:36:34 PDT"]
[Termination "adypady02 won by resignation"]

1. Nf3 {[%clk 0:02:52.6]} 1... Nf6 {[%clk 0:02:57.8]} 2. c4 {[%clk 0:02:53.6]}
2... g6 {[%clk 0:02:56.9]} 3. Nc3 {[%clk 0:02:54.7]} 3... Bg7 {[%clk 0:02:57.3]}
4. e4 {[%clk 0:02:55.9]} 4... d6 {[%clk 0:02:59]} 5. d4 {[%clk 0:02:56.8]} 5...
O-O {[%clk 0:02:59.5]} 6. h3 {[%clk 0:02:57.8]} 6... e5 {[%clk 0:03:00.4]} 7. d5
{[%clk 0:02:52]} 7... Nh5 {[%clk 0:03:00.4]} 8. Bg5 {[%clk 0:02:48.4]} 8... Qe8
{[%clk 0:02:57.3]} 9. g4 {[%clk 0:02:47.3]} 9... Nf4 {[%clk 0:02:58]} 10. Bxf4
{[%clk 0:02:47.2]} 10... exf4 {[%clk 0:02:58.1]} 11. Qc2 {[%clk 0:02:44.3]}
11... f5 {[%clk 0:02:56]} 12. gxf5 {[%clk 0:02:42.7]} 12... gxf5 {[%clk
0:02:57.9]} 13. Bd3 {[%clk 0:02:37.4]} 13... Na6 {[%clk 0:02:56.6]} 14. O-O-O
{[%clk 0:02:35.9]} 14... Nb4 {[%clk 0:02:40.3]} 15. Qd2 {[%clk 0:02:35.4]} 15...
Nxd3+ {[%clk 0:02:38.7]} 16. Qxd3 {[%clk 0:02:35.9]} 16... fxe4 {[%clk 0:02:40]}
17. Qxe4 {[%clk 0:02:36.5]} 17... Qh5 {[%clk 0:02:29.9]} 18. Rhg1 {[%clk
0:02:29.5]} 18... Bf5 {[%clk 0:02:29.2]} 19. Qd4 {[%clk 0:02:25.9]} 19... Bg6
{[%clk 0:02:29.9]} 20. Ng5 {[%clk 0:02:20.5]} 20... Bxd4 {[%clk 0:02:29.2]} 0-1

[Event "*** Titled Tuesday 3|2 Blitz"]
[Site "Chess.com"]
[Date "2015.06.02"]
[Round "8"]
[White "Krutoy123"]
[Black "Tal-Baronfew"]
[Result "0-1"]
[WhiteElo "2138"]
[BlackElo "2639"]
[TimeControl "180+2"]
[EndTime "12:38:07 PDT"]
[Termination "Tal-Baronfew won by resignation"]

1. b3 {[%clk 0:03:01.9]} 1... e5 {[%clk 0:02:59.5]} 2. Bb2 {[%clk 0:03:02.6]}
2... Nc6 {[%clk 0:03:00.3]} 3. e3 {[%clk 0:03:03.8]} 3... Nf6 {[%clk 0:03:00.8]}
4. Bb5 {[%clk 0:03:04.8]} 4... e4 {[%clk 0:03:01]} 5. Ne2 {[%clk 0:02:44.7]}
5... a6 {[%clk 0:02:56.8]} 6. Bxc6 {[%clk 0:02:45.3]} 6... dxc6 {[%clk
0:02:58.1]} 7. O-O {[%clk 0:02:41.6]} 7... Bd6 {[%clk 0:02:56.9]} 8. h3 {[%clk
0:02:42.8]} 8... Bf5 {[%clk 0:02:53.4]} 9. f3 {[%clk 0:02:13.3]} 9... Qd7 {[%clk
0:02:46.3]} 10. fxe4 {[%clk 0:02:08.2]} 10... Nxe4 {[%clk 0:02:47.8]} 11. Qe1
{[%clk 0:02:04.1]} 11... Bxh3 {[%clk 0:02:29.1]} 12. gxh3 {[%clk 0:01:48.8]}
12... Qxh3 {[%clk 0:02:29.6]} 13. Nf4 {[%clk 0:01:36.3]} 13... Qg4+ {[%clk
0:02:26.1]} 14. Kh2 {[%clk 0:01:36.4]} 14... g5 {[%clk 0:02:22.1]} 15. Nc3
{[%clk 0:01:05.8]} 15... gxf4 {[%clk 0:02:16.7]} 16. Nxe4 {[%clk 0:01:06.4]}
16... Qh5+ {[%clk 0:02:11.2]} 0-1

[Event "*** Titled Tuesday 3|2 Blitz"]
[Site "Chess.com"]
[Date "2015.06.02"]
[Round "8"]
[White "Genghis_K"]
[Black "Tilicheev_Viacheslav"]
[Result "0-1"]
[WhiteElo "2546"]
[BlackElo "2459"]
[TimeControl "180+2"]
[EndTime "12:39:14 PDT"]
[Termination "Tilicheev_Viacheslav won by resignation"]

1. e4 {[%clk 0:02:58.3]} 1... c5 {[%clk 0:03:00.9]} 2. Nf3 {[%clk 0:02:57.3]}
2... d6 {[%clk 0:03:01.9]} 3. d4 {[%clk 0:02:58.8]} 3... cxd4 {[%clk 0:03:03.8]}
4. Nxd4 {[%clk 0:03:00.5]} 4... Nf6 {[%clk 0:03:05.2]} 5. Nc3 {[%clk 0:03:02]}
5... Nc6 {[%clk 0:03:06.4]} 6. Bg5 {[%clk 0:03:03.1]} 6... e6 {[%clk 0:03:07.7]}
7. Qd2 {[%clk 0:03:04.7]} 7... a6 {[%clk 0:03:09]} 8. O-O-O {[%clk 0:03:06.3]}
8... Bd7 {[%clk 0:03:10.4]} 9. f4 {[%clk 0:03:07.5]} 9... h6 {[%clk 0:03:11.7]}
10. Bh4 {[%clk 0:03:04.1]} 10... Nxe4 {[%clk 0:03:12.7]} 11. Qe1 {[%clk
0:02:59.8]} 11... Nf6 {[%clk 0:03:11.3]} 12. Nf5 {[%clk 0:03:01.1]} 12... Qa5
{[%clk 0:03:09]} 13. Nxd6+ {[%clk 0:03:01.4]} 13... Bxd6 {[%clk 0:03:10.9]} 14.
Rxd6 {[%clk 0:03:02.6]} 14... Qc7 {[%clk 0:03:12.8]} 15. Qd2 {[%clk 0:02:59.9]}
15... O-O-O {[%clk 0:03:00.3]} 16. Bxf6 {[%clk 0:02:58.3]} 16... gxf6 {[%clk
0:02:59.6]} 17. Be2 {[%clk 0:02:57]} 17... Ne7 {[%clk 0:03:00.8]} 18. Rd1 {[%clk
0:02:56.1]} 18... Nd5 {[%clk 0:02:54.6]} 19. Nxd5 {[%clk 0:02:51.1]} 19... Qxd6
{[%clk 0:02:50.5]} 20. Nxf6 {[%clk 0:02:43.1]} 20... Qxd2+ {[%clk 0:02:47.4]}
21. Rxd2 {[%clk 0:02:45]} 21... Bc6 {[%clk 0:02:49.1]} 22. Bd3 {[%clk
0:02:46.3]} 22... Rd4 {[%clk 0:02:43.1]} 23. g3 {[%clk 0:02:46.6]} 23... Kc7
{[%clk 0:02:41.4]} 24. Re2 {[%clk 0:02:40.6]} 24... h5 {[%clk 0:02:36.2]} 25.
Rf2 {[%clk 0:02:36.3]} 25... h4 {[%clk 0:02:32.5]} 26. Kd2 {[%clk 0:02:35.8]}
26... hxg3 {[%clk 0:02:21.4]} 27. hxg3 {[%clk 0:02:37.7]} 27... Rh3 {[%clk
0:02:22.7]} 28. Kc3 {[%clk 0:02:27.7]} 28... Rd8 {[%clk 0:02:16.2]} 29. g4
{[%clk 0:02:26.3]} 29... Bb5 {[%clk 0:02:15.6]} 30. g5 {[%clk 0:02:12.6]} 30...
Bxd3 {[%clk 0:02:13.5]} 31. cxd3 {[%clk 0:02:14.5]} 31... Rdxd3+ {[%clk
0:02:07.4]} 32. Kc2 {[%clk 0:02:14.1]} 32... Rdf3 {[%clk 0:02:09.3]} 33. Rd2
{[%clk 0:02:15.1]} 33... Kc6 {[%clk 0:02:03.3]} 34. a3 {[%clk 0:02:14.8]} 34...
Rxf4 {[%clk 0:01:59]} 35. Rd8 {[%clk 0:02:15.9]} 35... Rf2+ {[%clk 0:01:55.4]}
36. Kb1 {[%clk 0:02:16.4]} 36... Rh1+ {[%clk 0:01:50.7]} 37. Ka2 {[%clk
0:02:16.5]} 37... Rhh2 {[%clk 0:01:52.6]} 38. Rc8+ {[%clk 0:02:16.7]} 38... Kd6
{[%clk 0:01:43.3]} 39. Rd8+ {[%clk 0:02:14.5]} 39... Kc7 {[%clk 0:01:41.2]} 40.
Rd7+ {[%clk 0:02:14.4]} 40... Kc6 {[%clk 0:01:40.7]} 41. a4 {[%clk 0:02:10.3]}
41... Rxf6 {[%clk 0:01:34.8]} 0-1

[Event "*** Titled Tuesday 3|2 Blitz"]
[Site "Chess.com"]
[Date "2015.06.02"]
[Round "8"]
[White "ruifeng"]
[Black "Theladies"]
[Result "1-0"]
[WhiteElo "2137"]
[BlackElo "1932"]
[TimeControl "180+2"]
[EndTime "12:39:14 PDT"]
[Termination "ruifeng won by resignation"]

1. e4 {[%clk 0:03:01.9]} 1... c5 {[%clk 0:02:46]} 2. Nc3 {[%clk 0:03:00.4]} 2...
g6 {[%clk 0:02:42.4]} 3. g3 {[%clk 0:03:00.8]} 3... Bg7 {[%clk 0:02:36.1]} 4.
Bg2 {[%clk 0:03:01.7]} 4... Nc6 {[%clk 0:02:36.3]} 5. d3 {[%clk 0:03:02.9]} 5...
d6 {[%clk 0:02:32.2]} 6. Be3 {[%clk 0:03:03.6]} 6... Nf6 {[%clk 0:02:28.7]} 7.
Nge2 {[%clk 0:03:03.8]} 7... O-O {[%clk 0:02:23.5]} 8. O-O {[%clk 0:03:04.3]}
8... Rb8 {[%clk 0:02:19.6]} 9. h3 {[%clk 0:03:04.7]} 9... Bd7 {[%clk 0:02:13.4]}
10. Qd2 {[%clk 0:03:05.4]} 10... Re8 {[%clk 0:01:57]} 11. f4 {[%clk 0:03:06]}
11... b5 {[%clk 0:01:51.7]} 12. f5 {[%clk 0:03:07]} 12... b4 {[%clk 0:01:49.5]}
13. Nd1 {[%clk 0:03:08]} 13... e6 {[%clk 0:01:46.9]} 14. fxe6 {[%clk 0:02:51.9]}
14... fxe6 {[%clk 0:01:40.8]} 15. Bh6 {[%clk 0:02:52.1]} 15... Bh8 {[%clk
0:01:37.4]} 16. Ne3 {[%clk 0:02:51.9]} 16... Qe7 {[%clk 0:01:31.4]} 17. Bg5
{[%clk 0:02:49.6]} 17... Rf8 {[%clk 0:01:31.6]} 18. Ng4 {[%clk 0:02:49.2]} 18...
e5 {[%clk 0:01:19.7]} 19. Nh6+ {[%clk 0:02:42.7]} 19... Kg7 {[%clk 0:01:10.1]}
20. g4 {[%clk 0:02:43.6]} 20... Qe6 {[%clk 0:01:00.5]} 21. Ng3 {[%clk
0:02:42.1]} 21... Ne7 {[%clk 0:00:56]} 22. Bxf6+ {[%clk 0:02:28]} 22... Rxf6
{[%clk 0:00:51.2]} 23. Qg5 {[%clk 0:02:29]} 23... Kf8 {[%clk 0:00:07.2]} 24.
Rxf6+ {[%clk 0:02:29]} 24... Bxf6 {[%clk 0:00:07]} 25. Rf1 {[%clk 0:02:29.8]}
25... Nf5 {[%clk 0:00:03.9]} 26. gxf5 {[%clk 0:02:28.6]} 26... Bxg5 {[%clk
0:00:05.4]} 27. fxe6+ {[%clk 0:02:29.5]} 27... Kg7 {[%clk 0:00:06.4]} 28. exd7
{[%clk 0:02:27.9]} 1-0